fUSD/lending_fUSD_20241015
["ID","MTS","AMOUNT","RATE_DAILY","PERIOD"]
[340272469,1728983444115,-500.0,0.00024657,7]
[340272470,1728983444124,-524.47278015,0.00024657,7]
[340272471,1728983444133,-500.0,0.00024657,7]
[340272472,1728983444143,-500.0,0.00024657,7]
[340272473,1728983444151,-171.51021061,0.00024657,7]
[340272474,1728983444161,-500.0,0.00024657,7]
[340272475,1728983444170,-500.0,0.00024657,7]
[340272476,1728983444179,-500.0,0.00024657,7]
[340272477,1728983444188,-500.0,0.00024657,7]
[340272478,1728983444198,-500.0,0.00024657,7]
[340272479,1728983444207,-498.18810018,0.00024657,7]
[340272480,1728983444216,-500.0,0.00024657,7]
[340272481,1728983444226,-500.0,0.00024657,7]
[340272482,1728983444235,-443.8,0.00024657,7]
[340272483,1728983444245,-552.68408939,0.00024657,7]
[340272484,1728983444254,-320.49095932,0.00024657,7]
[340272485,1728983444263,-500.0,0.00024657,7]
[340272486,1728983444273,-500.0,0.00024657,7]
[340272487,1728983444283,-500.0,0.00024657,7]
[340272488,1728983444292,-500.0,0.00024657,7]
[340272489,1728983444301,-500.0,0.00024657,7]
[340272490,1728983444311,-209.60468886,0.00024657,7]
[340272491,1728983444321,-500.0,0.00024657,7]
[340272492,1728983444331,-500.0,0.00024657,7]
[340272493,1728983444340,-184.91428644,0.00024657,7]
[340272494,1728983444350,-561.07292957,0.00024657,7]
[340272495,1728983444359,-500.0,0.00024657,7]
[340272496,1728983444368,-500.0,0.00024657,7]
[340272497,1728983444378,-500.0,0.00024657,7]
[340272498,1728983444387,-500.0,0.00024657,7]
[340272499,1728983444397,-595.9933292,0.00024657,7]
[340272500,1728983444406,-500.0,0.00024657,7]
[340272501,1728983444415,-500.0,0.00024657,7]
[340272502,1728983444425,-500.0,0.00024657,7]
[340272503,1728983444437,-500.0,0.00024657,7]
[340272504,1728983444446,-511.85610063,0.00024657,7]
[340272505,1728983444456,-500.0,0.00024657,7]
[340272506,1728983444466,-500.0,0.00024657,7]
[340272507,1728983444475,-500.0,0.00024657,7]
[340272508,1728983444485,-500.0,0.00024657,7]
[340272509,1728983444494,-534.92566085,0.00024657,7]
[340272510,1728983444503,-500.0,0.00024657,7]
[340272511,1728983444513,-602.22322748,0.00024657,7]
[340272512,1728983444523,-577.35,0.00024657,7]
[340272513,1728983444532,-577.35,0.00024657,7]
[340272514,1728983444541,-577.35,0.00024657,7]
[340272515,1728983444551,-577.35,0.00024657,7]
[340272516,1728983444560,-577.35,0.00024657,7]
[340272517,1728983444569,-577.35,0.00024657,7]
[340272518,1728983444578,-577.35,0.00024657,7]
[340272519,1728983444587,-577.35,0.00024657,7]
[340272520,1728983444597,-577.35,0.00024657,7]
[340272521,1728983444606,-577.35,0.00024657,7]
[340272522,1728983444616,-577.35,0.00024657,7]
[340272523,1728983444625,-577.35,0.00024657,7]
[340272524,1728983444635,-577.35,0.00024657,7]
[340272525,1728983444644,-577.35,0.00024657,7]
[340272526,1728983444653,-577.35,0.00024657,7]
[340272527,1728983444662,-577.35,0.00024657,7]
[340272528,1728983444671,-500.0,0.00024657,7]
[340272529,1728983444682,-577.35,0.00024657,7]
[340272530,1728983444694,-500.0,0.00024657,7]
[340272531,1728983444703,-500.0,0.00024657,7]
[340272532,1728983444713,-500.0,0.00024657,7]
[340272533,1728983444722,-169.11528789,0.00024657,7]
[340272534,1728983444732,-510.69140286,0.00024657,7]
[340272535,1728983444741,-529.45824181,0.00024657,7]
[340272536,1728983444750,-500.0,0.00024657,7]
[340272537,1728983444759,-431.71822621,0.00024657,7]
[340272538,1728983444771,-501.51213022,0.00024657,7]
[340272539,1728983444780,-558.89419786,0.00024657,7]
[340272540,1728983444789,-511.56631068,0.00024657,7]
[340272541,1728983444799,-568.56575345,0.00024657,7]
[340272542,1728983444808,-500.0,0.00024657,7]
[340272543,1728983444817,-500.0,0.00024657,7]
[340272544,1728983444826,-500.0,0.00024657,7]
[340272545,1728983444835,-641.32221399,0.00024657,7]
[340272546,1728983444844,-500.0,0.00024657,7]
[340272547,1728983444853,-500.0,0.00024657,7]
[340272548,1728983444862,-500.0,0.00024657,7]
[340272549,1728983444872,-500.0,0.00024657,7]
[340272550,1728983444881,-500.0,0.00024657,7]
[340272551,1728983444890,-517.43308444,0.00024657,7]
[340272552,1728983444900,-500.0,0.00024657,7]
[340272553,1728983444909,-458.92446708,0.00024657,7]
[340272554,1728983444919,-500.0,0.00024657,7]
[340272555,1728983444929,-500.0,0.00024657,7]
[340272556,1728983444938,-500.0,0.00024657,7]
[340272557,1728983444947,-500.0,0.00024657,7]
[340272558,1728983444956,-500.0,0.00024657,7]
[340272559,1728983444965,-500.0,0.00024657,7]
[340272560,1728983444975,-500.0,0.00024657,7]
[340272561,1728983444984,-430.7749732,0.00024657,7]
[340272562,1728983444994,-579.07531136,0.00024657,7]
[340272563,1728983445004,-500.0,0.00024657,7]
[340272564,1728983445013,-500.0,0.00024657,7]
[340272565,1728983445022,-500.0,0.00024657,7]
[340272566,1728983445031,-500.0,0.00024657,7]
[340272567,1728983445040,-500.0,0.00024657,7]
[340272568,1728983445049,-500.0,0.00024657,7]
[340272569,1728983445058,-500.0,0.00024657,7]
[340272570,1728983445068,-500.0,0.00024657,7]
[340272571,1728983445077,-500.0,0.00024657,7]
[340272572,1728983445086,-500.0,0.00024657,7]
[340272573,1728983445096,-500.0,0.00024657,7]
[340272574,1728983445105,-500.0,0.00024657,7]
[340272575,1728983445115,-500.0,0.00024657,7]
[340272576,1728983445125,-510.60361634,0.00024657,7]
[340272577,1728983445135,-500.0,0.00024657,7]
[340272578,1728983445144,-20000.0,0.00024657,2]
[340272579,1728983445154,-514.38723228,0.00024657,7]
[340272580,1728983445163,-500.0,0.00024657,7]
[340272581,1728983445271,-500.0,0.00024657,7]
[340272582,1728983445282,-20000.0,0.00024657,2]
[340272583,1728983445291,-500.0,0.00024657,7]
[340272584,1728983445301,-500.0,0.00024657,7]
[340272585,1728983445310,-5879.29039901,0.00024657,2]
[340272586,1728983445319,-500.0,0.00024657,7]
[340272587,1728983445328,-500.0,0.00024657,7]
[340272588,1728983445338,-500.0,0.00024657,7]
[340272589,1728983445347,-642.02526448,0.00024657,7]
[340272590,1728983445357,-591.22815282,0.00024657,7]
[340272591,1728983445366,-2161.89,0.00024657,7]
[340272592,1728983445375,-500.0,0.00024657,7]
[340272593,1728983445385,-518.71869135,0.00024657,7]
[340272594,1728983445394,-2161.89,0.00024657,7]
[340272595,1728983445404,-2161.89,0.00024657,7]
[340272596,1728983445413,-2161.89,0.00024657,7]
[340272597,1728983445423,-549.57634315,0.00024657,7]
[340272598,1728983445433,-2161.89,0.00024657,7]
[340272599,1728983445443,-2161.89,0.00024657,7]
[340272600,1728983445453,-500.0,0.00024657,7]
[340272601,1728983445463,-2161.89,0.00024657,7]
[340272602,1728983445472,-346.68981087,0.00024657,7]
[340272603,1728983445482,-2161.89,0.00024657,7]
[340272604,1728983445491,-2161.89,0.00024657,7]
[340272605,1728983445500,-2161.89,0.00024657,7]
[340272606,1728983445510,-388.91815831,0.00024657,7]
[340272607,1728983445520,-2161.89,0.00024657,7]
[340272608,1728983445529,-500.0,0.00024657,7]
[340272609,1728983445539,-2161.89,0.00024657,7]
[340272610,1728983445548,-2161.89,0.00024657,7]
[340272611,1728983445558,-500.0,0.00024657,7]
[340272612,1728983445567,-500.0,0.00024657,7]
[340272613,1728983445577,-2161.89,0.00024657,7]
[340272614,1728983445586,-500.0,0.00024657,7]
[340272615,1728983445595,-203.51382553,0.00024657,7]
[340272616,1728983445604,-2161.89,0.00024657,7]
[340272617,1728983445614,-500.0,0.00024657,7]
[340272618,1728983445623,-2161.89,0.00024657,7]
[340272619,1728983445633,-500.0,0.00024657,7]
[340272620,1728983445642,-2161.89,0.00024657,7]
[340272621,1728983445651,-500.0,0.00024657,7]
[340272622,1728983445660,-500.0,0.00024657,7]
[340272623,1728983445669,-2161.89,0.00024657,7]
[340272624,1728983445680,-500.0,0.00024657,7]
[340272625,1728983445690,-2161.89,0.00024657,7]
[340272626,1728983445701,-500.0,0.00024657,7]
[340272627,1728983445710,-2161.89,0.00024657,7]
[340272628,1728983445720,-2161.89,0.00024657,7]
[340272629,1728983445731,-254.5553554,0.00024657,7]
[340272630,1728983445740,-2161.89,0.00024657,7]
[340272631,1728983445749,-318.67232036,0.00024657,7]
[340272632,1728983445758,-2161.89,0.00024657,7]
[340272633,1728983445767,-2162.05329307,0.00024657,7]
[340272634,1728983445779,-500.0,0.00024657,7]
[340272635,1728983445789,-521.96355162,0.00024657,7]
[340272636,1728983445798,-500.0,0.00024657,7]
[340272637,1728983445807,-525.30292579,0.00024657,7]
[340272638,1728983445817,-501.66038623,0.00024657,7]
[340272639,1728983445827,-625.56136524,0.00024657,7]
[340272640,1728983445836,-500.0,0.00024657,7]
[340272641,1728983445846,-500.0,0.00024657,7]
[340272642,1728983445855,-168.71370413,0.00024657,7]
[340272643,1728983445865,-500.0,0.00024657,7]
[340272644,1728983445875,-500.0,0.00024657,7]
[340272645,1728983445885,-500.0,0.00024657,7]
[340272647,1728983445894,-500.0,0.00024657,7]
[340272648,1728983445904,-500.0,0.00024657,7]
[340272649,1728983445913,-500.0,0.00024657,7]
[340272650,1728983445922,-500.0,0.00024657,7]
[340272651,1728983445931,-284.62926748,0.00024657,7]
[340272652,1728983445941,-500.0,0.00024657,7]
[340272653,1728983445950,-500.0,0.00024657,7]
[340272654,1728983445959,-500.0,0.00024657,7]
[340272655,1728983445968,-500.0,0.00024657,7]
[340272656,1728983445977,-539.20620109,0.00024657,7]
[340272657,1728983445986,-558.03415193,0.00024657,7]
[340272658,1728983445995,-515.77800001,0.00024657,7]
[340272659,1728983446005,-545.75143456,0.00024657,7]
[340272660,1728983446014,-243.24936736,0.00024657,7]
[340272661,1728983446023,-500.0,0.00024657,7]
[340272662,1728983446033,-500.0,0.00024657,7]
[340272663,1728983446042,-500.0,0.00024657,7]
[340272664,1728983446051,-500.0,0.00024657,7]
[340272665,1728983446060,-500.0,0.00024657,7]
[340272666,1728983446070,-500.0,0.00024657,7]
[340272667,1728983446079,-500.0,0.00024657,7]
[340272668,1728983446088,-500.0,0.00024657,7]
[340272669,1728983446097,-500.0,0.00024657,7]
[340272670,1728983446107,-500.0,0.00024657,7]
[340272671,1728983446116,-500.0,0.00024657,7]
[340272672,1728983446125,-303.58051026,0.00024657,7]
[340272673,1728983446134,-319.26344852,0.00024657,7]
[340272674,1728983446143,-500.0,0.00024657,7]
[340272675,1728983446152,-500.0,0.00024657,7]
[340272676,1728983446161,-500.0,0.00024657,7]
[340272677,1728983446170,-200.781287,0.00024657,7]
[340272678,1728983446181,-500.0,0.00024657,7]
[340272679,1728983446190,-399.16740932,0.00024657,7]
[340272680,1728983446199,-575.40263336,0.00024657,7]
[340272681,1728983446209,-500.0,0.00024657,7]
[340272682,1728983446219,-500.0,0.00024657,7]
[340272683,1728983446228,-500.0,0.00024657,7]
[340272684,1728983446237,-500.0,0.00024657,7]
[340272685,1728983446247,-500.0,0.00024657,7]
[340272686,1728983446256,-500.0,0.00024657,7]
[340272687,1728983446265,-500.0,0.00024657,7]
[340272688,1728983446275,-500.0,0.00024657,7]
[340272689,1728983446284,-500.0,0.00024657,7]
[340272690,1728983446293,-500.0,0.00024657,7]
[340272691,1728983446303,-255.50412096,0.00024657,7]
[340272692,1728983446312,-500.0,0.00024657,7]
[340272693,1728983446322,-163.64472526,0.00024657,7]
[340272694,1728983446332,-531.0226915,0.00024657,7]
[340272695,1728983446342,-166.30554786,0.00024657,7]
[340272696,1728983446351,-505.26294074,0.00024657,7]
[340272697,1728983446361,-231.16943267,0.00024657,7]
[340272698,1728983446370,-500.0,0.00024657,7]
[340272699,1728983446379,-531.23607403,0.00024657,7]
[340272700,1728983446388,-508.7158075,0.00024657,7]
[340272701,1728983446398,-327.4973254,0.00024657,7]
[340272702,1728983446408,-533.16515618,0.00024657,7]
[340272703,1728983446417,-588.51,0.00024657,7]
[340272704,1728983446427,-588.51,0.00024657,7]
[340272705,1728983446437,-187.16993356,0.00024657,7]
[340272706,1728983446446,-588.51,0.00024657,7]
[340272707,1728983446455,-588.51,0.00024657,7]
[340272708,1728983446465,-588.51,0.00024657,7]
[340272709,1728983446474,-500.0,0.00024657,7]
[340272710,1728983446483,-588.51,0.00024657,7]
[340272711,1728983446492,-475.7507291,0.00024657,7]
[340272712,1728983446501,-588.51,0.00024657,7]
[340272713,1728983446510,-588.51,0.00024657,7]
[340272714,1728983446520,-588.51,0.00024657,7]
[340272715,1728983446530,-510.83819129,0.00024657,7]
[340272716,1728983446539,-588.51,0.00024657,7]
[340272717,1728983446549,-500.0,0.00024657,7]
[340272718,1728983446558,-588.51,0.00024657,7]
[340272719,1728983446567,-500.0,0.00024657,7]
[340272720,1728983446576,-507.05878436,0.00024657,7]
[340272721,1728983446586,-588.51,0.00024657,7]
[340272722,1728983446595,-500.0,0.00024657,7]
[340272723,1728983446604,-588.51,0.00024657,7]
[340272724,1728983446613,-500.0,0.00024657,7]
[340272725,1728983446623,-588.51,0.00024657,7]
[340272726,1728983446632,-500.0,0.00024657,7]
[340272727,1728983446641,-588.51,0.00024657,7]
[340272728,1728983446651,-500.0,0.00024657,7]
[340272729,1728983446660,-500.0,0.00024657,7]
[340272730,1728983446669,-536.51590416,0.00024657,7]
[340272731,1728983446679,-588.51,0.00024657,7]
[340272732,1728983446690,-500.0,0.00024657,7]
[340272733,1728983446701,-510.36612012,0.00024657,7]
[340272734,1728983446710,-277.2066115,0.00024657,7]
[340272735,1728983446719,-500.0,0.00024657,7]
[340272736,1728983446728,-588.51,0.00024657,7]
[340272737,1728983446738,-500.0,0.00024657,7]
[340272738,1728983446747,-500.0,0.00024657,7]
[340272739,1728983446757,-585.39264319,0.00024657,7]
[340272740,1728983446768,-500.0,0.00024657,7]
[340272741,1728983446777,-500.0,0.00024657,7]
[340272742,1728983446787,-500.0,0.00024657,7]
[340272743,1728983446796,-228.78021774,0.00024657,7]
[340272744,1728983446806,-560.88063866,0.00024657,7]
[340272745,1728983446816,-500.0,0.00024657,7]
[340272746,1728983446825,-500.0,0.00024657,7]
[340272747,1728983446834,-500.0,0.00024657,7]
[340272748,1728983446843,-510.24606036,0.00024657,7]
[340272749,1728983446853,-208.18615158,0.00024657,7]
[340272750,1728983446862,-500.0,0.00024657,7]
[340272751,1728983446872,-500.0,0.00024657,7]
[340272752,1728983446881,-500.0,0.00024657,7]
[340272753,1728983446891,-576.5941089,0.00024657,7]
[340272754,1728983446900,-509.6573012,0.00024657,7]
[340272755,1728983446910,-500.0,0.00024657,7]
[340272756,1728983446919,-500.0,0.00024657,7]
[340272757,1728983446929,-261.60820423,0.00024657,7]
[340272758,1728983446939,-500.0,0.00024657,7]
[340272759,1728983446949,-500.0,0.00024657,7]
[340272760,1728983446959,-604.52938498,0.00024657,7]
[340272761,1728983446968,-172.16145078,0.00024657,7]
[340272762,1728983446978,-500.0,0.00024657,7]
[340272763,1728983446987,-500.0,0.00024657,7]
[340272764,1728983446996,-500.0,0.00024657,7]
[340272765,1728983447006,-506.53241658,0.00024657,7]
[340272766,1728983447015,-500.0,0.00024657,7]
[340272767,1728983447024,-500.0,0.00024657,7]
[340272768,1728983447033,-500.0,0.00024657,7]
[340272769,1728983447042,-500.0,0.00024657,7]
[340272770,1728983447051,-284.95729522,0.00024657,7]
[340272771,1728983447060,-500.0,0.00024657,7]
[340272772,1728983447070,-500.0,0.00024657,7]
[340272773,1728983447079,-562.467419,0.00024657,7]
[340272774,1728983447088,-500.0,0.00024657,7]
[340272775,1728983447098,-500.0,0.00024657,7]
[340272776,1728983447107,-544.32107105,0.00024657,7]
[340272777,1728983447116,-500.0,0.00024657,7]
[340272778,1728983447125,-500.0,0.00024657,7]
[340272779,1728983447134,-542.06654531,0.00024657,7]
[340272780,1728983447144,-500.0,0.00024657,7]
[340272781,1728983447153,-500.0,0.00024657,7]
[340272782,1728983447162,-500.0,0.00024657,7]
[340272783,1728983447172,-500.0,0.00024657,7]
[340272784,1728983447183,-500.0,0.00024657,7]
[340272785,1728983447193,-500.0,0.00024657,7]
[340272786,1728983447202,-534.47483899,0.00024657,7]
[340272787,1728983447211,-533.06235255,0.00024657,7]
[340272788,1728983447221,-316.09205572,0.00024657,7]
[340272789,1728983447231,-500.0,0.00024657,7]
[340272790,1728983447240,-500.0,0.00024657,7]
[340272791,1728983447249,-265.09546498,0.00024657,7]
[340272792,1728983447259,-500.0,0.00024657,7]
[340272793,1728983447268,-500.0,0.00024657,7]
[340272794,1728983447278,-500.0,0.00024657,2]
[340272795,1728983447287,-500.0,0.00024657,7]
[340272796,1728983447296,-500.0,0.00024657,2]
[340272797,1728983447306,-247.27497338,0.00024657,7]
[340272798,1728983447404,-500.0,0.00024657,7]
[340272799,1728983447428,-500.0,0.00024657,2]
[340272800,1728983447440,-584.82984417,0.00024657,7]
[340272801,1728983447450,-500.0,0.00024657,7]
[340272802,1728983447460,-500.0,0.00024657,2]
[340272803,1728983447469,-500.0,0.00024657,7]
[340272804,1728983447479,-518.18375415,0.00024657,7]
[340272805,1728983447488,-500.0,0.00024657,2]
[340272806,1728983447498,-505.43490668,0.00024657,2]
[340272807,1728983447507,-535.77884472,0.00024657,7]
[340272808,1728983447517,-500.0,0.00024657,7]
[340272809,1728983447526,-500.0,0.00024657,7]
[340272810,1728983447535,-500.0,0.00024657,7]
[340272811,1728983447545,-500.0,0.00024657,7]
[340272812,1728983447554,-500.0,0.00024657,7]
[340272813,1728983447563,-169.97021404,0.00024657,7]
[340272814,1728983447573,-500.0,0.00024657,7]
[340272815,1728983447582,-579.0491279,0.00024657,7]
[340272816,1728983447591,-301.79481186,0.00024657,7]
[340272817,1728983447600,-500.0,0.00024657,7]
[340272818,1728983447609,-500.0,0.00024657,7]
[340272819,1728983447619,-500.0,0.00024657,7]
[340272820,1728983447628,-500.0,0.00024657,7]
[340272821,1728983447638,-500.0,0.00024657,7]
[340272822,1728983447647,-635.08375692,0.00024657,7]
[340272823,1728983447656,-500.0,0.00024657,7]
[340272824,1728983447665,-500.0,0.00024657,7]
[340272825,1728983447674,-500.0,0.00024657,7]
[340272826,1728983447684,-500.0,0.00024657,7]
[340272827,1728983447697,-500.0,0.00024657,7]
[340272828,1728983447706,-500.0,0.00024657,7]
[340272829,1728983447715,-500.0,0.00024657,7]
[340272830,1728983447724,-500.0,0.00024657,7]
[340272831,1728983447734,-514.63250305,0.00024657,7]
[340272832,1728983447743,-500.0,0.00024657,7]
[340272833,1728983447753,-194.98207035,0.00024657,7]
[340272834,1728983447762,-512.62176488,0.00024657,7]
[340272835,1728983447772,-164.06898772,0.00024657,7]
[340272836,1728983447782,-515.41833337,0.00024657,7]
[340272837,1728983447791,-500.0,0.00024657,7]
[340272838,1728983447800,-500.0,0.00024657,7]
[340272839,1728983447809,-500.0,0.00024657,7]
[340272840,1728983447819,-500.0,0.00024657,7]
[340272841,1728983447828,-500.0,0.00024657,7]
[340272842,1728983447838,-500.0,0.00024657,7]
[340272843,1728983447847,-500.0,0.00024657,7]
[340272844,1728983447857,-260.92234635,0.00024657,7]
[340272845,1728983447866,-500.0,0.00024657,7]
[340272846,1728983447875,-513.14020112,0.00024657,7]
[340272847,1728983447884,-500.0,0.00024657,7]
[340272848,1728983447893,-500.0,0.00024657,7]
[340272849,1728983447903,-179.8213302,0.00024657,7]
[340272850,1728983447912,-500.0,0.00024657,7]
[340272851,1728983447921,-500.0,0.00024657,7]
[340272852,1728983447931,-517.98792559,0.00024657,7]
[340272853,1728983447947,-500.0,0.00024657,7]
[340272854,1728983447955,-521.94201668,0.00024657,7]
[340272855,1728983447964,-500.0,0.00024657,7]
[340272856,1728983447974,-500.0,0.00024657,7]
[340272857,1728983447983,-500.0,0.00024657,7]
[340272858,1728983447992,-500.0,0.00024657,7]
[340272859,1728983448001,-500.0,0.00024657,7]
[340272860,1728983448012,-500.0,0.00024657,7]
[340272861,1728983448021,-500.0,0.00024657,7]
[340272862,1728983448030,-500.0,0.00024657,7]
[340272863,1728983448039,-500.0,0.00024657,7]
[340272864,1728983448049,-634.84864911,0.00024657,7]
[340272865,1728983448058,-500.0,0.00024657,7]
[340272866,1728983448068,-500.0,0.00024657,7]
[340272867,1728983448077,-500.0,0.00024657,7]
[340272868,1728983448087,-500.0,0.00024657,7]
[340272869,1728983448096,-555.35298483,0.00024657,7]
[340272870,1728983448105,-225.55857527,0.00024657,7]
[340272871,1728983448115,-500.0,0.00024657,7]
[340272872,1728983448124,-481.26083881,0.00024657,7]
[340272873,1728983448134,-500.0,0.00024657,7]
[340272874,1728983448143,-500.0,0.00024657,7]
[340272875,1728983448152,-500.0,0.00024657,7]
[340272876,1728983448161,-524.63336778,0.00024657,7]
[340272877,1728983448171,-189.456281,0.00024657,7]
[340272878,1728983448180,-500.0,0.00024657,7]
[340272879,1728983448191,-500.0,0.00024657,7]
[340272880,1728983448201,-518.57646766,0.00024657,7]
[340272881,1728983448210,-200.0,0.00024657,7]
[340272882,1728983448220,-200.0,0.00024657,7]
[340272883,1728983448229,-509.26359445,0.00024657,7]
[340272884,1728983448239,-200.0,0.00024657,7]
[340272885,1728983448248,-200.0,0.00024657,7]
[340272886,1728983448257,-200.0,0.00024657,7]
[340272887,1728983448267,-200.0,0.00024657,7]
[340272888,1728983448276,-635.96155798,0.00024657,7]
[340272889,1728983448286,-200.0,0.00024657,7]
[340272890,1728983448295,-534.25543108,0.00024657,7]
[340272891,1728983448305,-200.0,0.00024657,7]
[340272892,1728983448314,-200.0,0.00024657,7]
[340272893,1728983448324,-200.0,0.00024657,7]
[340272894,1728983448333,-200.0,0.00024657,7]
[340272895,1728983448343,-200.0,0.00024657,7]
[340272896,1728983448352,-200.0,0.00024657,7]
[340272897,1728983448362,-200.0,0.00024657,7]
[340272898,1728983448371,-200.0,0.00024657,7]
[340272899,1728983448380,-319.86778147,0.00024657,7]
[340272900,1728983448390,-200.0,0.00024657,7]
[340272901,1728983448399,-200.0,0.00024657,7]
[340272902,1728983448409,-186.98192879,0.00024657,7]
[340272903,1728983448418,-500.0,0.00024657,7]
[340272904,1728983448428,-500.0,0.00024657,7]
[340272905,1728983448439,-500.0,0.00024657,7]
[340272906,1728983448449,-500.0,0.00024657,7]
[340272907,1728983448458,-500.0,0.00024657,7]
[340272908,1728983448467,-500.0,0.00024657,7]
[340272909,1728983448476,-500.0,0.00024657,7]
[340272910,1728983448486,-543.27171206,0.00024657,7]
[340272911,1728983448495,-294.32150656,0.00024657,7]
[340272912,1728983448505,-500.0,0.00024657,7]
[340272913,1728983448514,-527.40127536,0.00024657,7]
[340272914,1728983448523,-507.17646219,0.00024657,7]
[340272915,1728983448534,-510.25364021,0.00024657,7]
[340272916,1728983448543,-527.87157526,0.00024657,7]
[340272917,1728983448552,-500.0,0.00024657,7]
[340272918,1728983448562,-500.0,0.00024657,7]
[340272919,1728983448571,-500.0,0.00024657,7]
[340272920,1728983448581,-500.0,0.00024657,7]
[340272921,1728983448590,-500.0,0.00024657,7]
[340272922,1728983448600,-500.0,0.00024657,7]
[340272923,1728983448609,-527.07950086,0.00024657,7]
[340272924,1728983448619,-500.0,0.00024657,7]
[340272925,1728983448629,-500.0,0.00024657,7]
[340272926,1728983448639,-500.0,0.00024657,7]
[340272927,1728983448648,-500.0,0.00024657,7]
[340272928,1728983448658,-510.48566677,0.00024657,7]
[340272929,1728983448668,-500.0,0.00024657,7]
[340272930,1728983448677,-500.0,0.00024657,7]
[340272931,1728983448688,-500.0,0.00024657,7]
[340272932,1728983448701,-520.56397085,0.00024657,7]
[340272933,1728983448711,-500.0,0.00024657,7]
[340272934,1728983448720,-500.0,0.00024657,7]
[340272935,1728983448731,-188.72496579,0.00024657,7]
[340272936,1728983448741,-540.38446332,0.00024657,7]
[340272937,1728983448751,-232.08379409,0.00024657,7]
[340272938,1728983448760,-500.0,0.00024657,7]
[340272939,1728983448771,-500.0,0.00024657,7]
[340272940,1728983448781,-500.0,0.00024657,7]
[340272941,1728983448790,-500.0,0.00024657,7]
[340272942,1728983448800,-500.0,0.00024657,7]
[340272943,1728983448809,-570.93391838,0.00024657,7]
[340272944,1728983448819,-500.0,0.00024657,7]
[340272945,1728983448828,-519.90413286,0.00024657,7]
[340272946,1728983448837,-500.0,0.00024657,7]
[340272947,1728983448846,-282.61507456,0.00024657,7]
[340272948,1728983448856,-500.0,0.00024657,7]
[340272949,1728983448865,-500.0,0.00024657,7]
[340272950,1728983448875,-476.13881092,0.00024657,7]
[340272951,1728983448884,-181.81006664,0.00024657,7]
[340272952,1728983448894,-500.0,0.00024657,7]
[340272953,1728983448903,-510.70670523,0.00024657,7]
[340272954,1728983448912,-500.0,0.00024657,7]
[340272955,1728983448922,-500.0,0.00024657,7]
[340272956,1728983448931,-500.0,0.00024657,7]
[340272957,1728983448941,-500.0,0.00024657,7]
[340272958,1728983448951,-500.0,0.00024657,7]
[340272959,1728983448960,-500.0,0.00024657,7]
[340272960,1728983448969,-500.0,0.00024657,7]
[340272961,1728983448978,-379.37684891,0.00024657,7]
[340272962,1728983448987,-500.0,0.00024657,7]
[340272963,1728983448996,-522.09376487,0.00024657,7]
[340272964,1728983449005,-500.0,0.00024657,7]
[340272965,1728983449015,-594.64223428,0.00024657,7]
[340272966,1728983449024,-500.0,0.00024657,7]
[340272967,1728983449033,-500.0,0.00024657,7]
[340272968,1728983449042,-500.0,0.00024657,7]
[340272969,1728983449051,-500.0,0.00024657,7]